bitfinex/quotes_SOLUSD_20250611
["timestamp","ask_amount","ask_price","bid_price","bid_amount"]
[1749665332551,8.5,163.5,163.49,44.933972]
[1749665332757,8.5,163.5,163.49,79.15335919]
[1749665333344,8.5,163.5,163.49,68.84911163]
[1749665333528,8.5,163.54,163.5,18.933972]
[1749665333726,8.5,163.54,163.53,42.84911163]
[1749665333959,8.5,163.55,163.53,23.91513963]
[1749665334130,8.5,163.54,163.53,44.933972]
[1749665334636,8.5,163.54,163.53,47.07002953]
[1749665334841,8.5,163.54,163.53,52.74442697]
[1749665335254,8.5,163.55,163.53,74.52360894]
[1749665335462,8.5,163.55,163.54,44.98506756]
[1749665335644,8.5,163.56,163.55,18.933972]
[1749665335839,8.5,163.56,163.55,44.98506756]
[1749665336154,8.5,163.56,163.55,44.98494936]
[1749665336955,8.5,163.57,163.55,44.98493905]
[1749665337137,8.5,163.57,163.56,44.98493905]
[1749665337538,8.5,163.57,163.56,44.98492821]
[1749665337735,8.5,163.57,163.56,42.84911163]
[1749665337948,8.5,163.57,163.56,44.98492821]
[1749665338560,8.5,163.57,163.56,44.98491412]
[1749665339259,8.5,163.57,163.56,44.98482285]
[1749665339652,6.97276356,163.57,163.56,44.98482285]
[1749665339954,6.97276356,163.57,163.56,23.91513963]
[1749665340157,6.97276356,163.57,163.56,26.07120423]
[1749665340338,6.97276356,163.57,163.56,2.1560646]
[1749665340841,6.97276356,163.57,163.56,26.07127731]
[1749665341178,6.97276356,163.57,163.56,45.00524931]
[1749665341341,6.97276356,163.6,163.56,42.84911163]
[1749665341539,6.97276356,163.6,163.59,23.91513963]
[1749665341756,6.97276356,163.6,163.59,26.07128479]
[1749665342544,6.97276356,163.6,163.59,23.91513963]
[1749665342834,6.97276356,163.6,163.59,26.03059422]
[1749665343034,6.97276356,163.6,163.59,23.91513963]
[1749665343239,6.97276356,163.62,163.59,23.91513963]
[1749665343436,164.36959123,163.73,163.61,23.91513963]
[1749665343437,6.97276356,163.64,163.61,23.91513963]
[1749665343736,6.97276356,163.63,163.62,2.11291736]
[1749665343945,24.44,163.7,163.57,26.21862935]
[1749665343946,6.97276356,163.59,163.57,5.67449731]
[1749665344154,6.97276356,163.57,163.56,18.64964886]
[1749665344355,6.97276356,163.57,163.56,31.70295918]
[1749665344562,6.97276356,163.57,163.56,26.0194651]
[1749665344761,6.97276356,163.57,163.56,26.01948331]
[1749665344945,6.97276356,163.56,163.54,31.67449731]
[1749665345146,6.97276356,163.56,163.55,26.02158544]
[1749665345458,6.97276356,163.56,163.55,26.02158529]
[1749665345664,6.97276356,163.56,163.55,26.02160058]
[1749665345844,6.97276356,163.56,163.55,25.95096644]
[1749665346158,6.97276356,163.56,163.55,2.03583735]
[1749665346359,6.97276356,163.56,163.55,23.91513963]
[1749665346535,6.97276356,163.56,163.55,25.95098462]
[1749665347046,6.97276356,163.56,163.55,2.0358465]
[1749665347247,6.97276356,163.56,163.55,25.95101674]
[1749665347455,15.26527807,163.64,163.56,26.0]
[1749665347456,6.97276356,163.57,163.56,26.0]
[1749665347970,6.97276356,163.57,163.56,28.0355642]
[1749665348175,6.97276356,163.57,163.56,51.95070383]
[1749665348539,6.97276356,163.58,163.56,51.95070383]
[1749665348746,6.97276356,163.58,163.57,25.95070383]
[1749665349048,6.97276356,163.58,163.57,25.95473336]
[1749665349668,6.97276356,163.58,163.57,25.95474525]
[1749665349854,6.97276356,163.58,163.57,25.95481712]
[1749665350053,6.97276356,163.58,163.57,25.95475552]
[1749665350249,6.97276356,163.58,163.57,2.03961589]
[1749665350553,6.97276356,163.55,163.53,5.67449731]
[1749665350761,6.97276356,163.54,163.52,5.67449731]
[1749665351094,26.0,163.63,163.52,5.67449731]
[1749665351095,6.97276356,163.53,163.52,5.67449731]
[1749665351264,6.97276356,163.53,163.52,7.71448205]
[1749665351464,6.97276356,163.53,163.52,7.71448131]
[1749665351769,6.97276356,163.53,163.52,2.04000509]
[1749665352065,6.97276356,163.53,163.52,25.95524867]
[1749665352268,6.97276356,163.53,163.52,25.95525983]
[1749665352450,6.97276356,163.53,163.52,2.04013233]
[1749665352651,6.97276356,163.53,163.52,23.91513963]
[1749665352855,6.97276356,163.53,163.52,25.95541359]
[1749665353050,6.97276356,163.55,163.52,44.60506169]
[1749665353365,6.97276356,163.55,163.54,23.91513963]
[1749665353669,6.97276356,163.55,163.54,25.94984912]
[1749665354459,6.97276356,163.55,163.54,25.9519309]
[1749665354663,6.97276356,163.55,163.54,25.95199237]
[1749665354970,6.97276356,163.55,163.54,25.95196002]
[1749665355152,6.97276356,163.55,163.54,25.95192047]
[1749665355353,6.97276356,163.55,163.54,23.91513963]
[1749665355571,6.97276356,163.55,163.54,25.95486601]
[1749665355737,48.35513963,163.62,163.54,25.95486601]
[1749665355738,6.97276356,163.56,163.54,25.95486601]
[1749665355943,6.97276356,163.56,163.55,2.03972962]
[1749665356166,6.97276356,163.56,163.55,25.95486925]
[1749665356362,6.97276356,163.56,163.55,44.60451437]
[1749665356559,6.97276356,163.56,163.55,50.27894099]
[1749665356761,6.97276356,163.57,163.56,18.64964886]
[1749665356944,6.97276356,163.57,163.56,44.60434608]
[1749665357140,6.97276356,163.57,163.56,42.56478849]
[1749665357365,6.97276356,163.57,163.56,50.27883117]
[1749665357670,6.97276356,163.57,163.56,48.2392858]
[1749665357967,31.47513963,163.64,163.56,50.27871718]
[1749665357968,6.97276356,163.58,163.56,50.27871718]
[1749665358264,6.97276356,163.59,163.57,50.27865024]
[1749665358465,6.97276356,163.58,163.57,50.34348168]
[1749665358771,6.97276356,163.58,163.57,70.60412823]
[1749665359272,6.97276356,163.58,163.57,70.59811942]
[1749665359472,6.97276356,163.58,163.57,74.25862131]
[1749665359656,6.97276356,163.58,163.57,76.29188409]
[1749665360440,6.97276356,163.58,163.57,55.60897245]
[1749665360664,6.97276356,163.58,163.57,33.72715875]
[1749665360873,6.97276356,163.58,163.57,51.94846556]
[1749665361170,6.97276356,163.58,163.57,51.94841263]
[1749665361373,6.97276356,163.59,163.57,49.91513963]
[1749665361673,6.97276356,163.58,163.57,26.0]
[1749665361965,6.97276356,163.58,163.57,28.03330598]
[1749665362267,7.56,163.64,163.57,44.64964886]
[1749665362268,6.97276356,163.59,163.57,44.64964886]
[1749665362475,6.97276356,163.58,163.57,44.64964886]
[1749665363180,6.97276356,163.58,163.57,74.26642308]
[1749665363362,6.97276356,163.72,163.62,0.28432314]
[1749665363559,6.97276356,163.72,163.71,23.91513963]
[1749665363969,30.53833963,163.79,163.71,23.91513963]
[1749665363970,6.97276356,163.73,163.71,23.91513963]
[1749665364168,6.97276356,163.73,163.72,27.47271991]
[1749665364368,6.97276356,163.73,163.72,27.46860833]
[1749665364587,6.97276356,163.73,163.72,23.91513963]
[1749665365260,6.97276356,163.73,163.71,18.64964886]
[1749665365481,6.97276356,163.72,163.71,18.64964886]
[1749665366269,6.97276356,163.73,163.71,18.64964886]
[1749665366582,6.97276356,163.72,163.71,18.64964886]
[1749665366783,6.97276356,163.72,163.71,46.11852228]
[1749665366968,6.97276356,163.72,163.71,46.11853175]
[1749665367279,6.97276356,163.72,163.71,46.11848142]
[1749665367580,6.97276356,163.72,163.71,46.11858627]
[1749665367793,6.97276356,163.72,163.71,46.11858889]
[1749665367960,6.97276356,163.72,163.71,46.11858858]
[1749665368156,6.97276356,163.72,163.71,44.09082849]
[1749665368386,6.97276356,163.72,163.71,1.52603118]
[1749665368605,6.97276356,163.66,163.65,23.91513963]
[1749665369086,6.97276356,163.64,163.62,24.34801614]
[1749665369257,6.97276356,163.66,163.64,18.64964886]
[1749665369462,23.91513963,163.7,163.62,26.0]
[1749665369463,6.97276356,163.65,163.62,26.0]
[1749665369671,6.97276356,163.66,163.62,26.0]
[1749665369874,6.97276356,163.64,163.63,26.0]
[1749665370277,6.97276356,163.64,163.61,5.69836728]
[1749665370793,6.97276356,163.64,163.63,49.91513963]
[1749665370985,9.79595717,163.91,163.76,0.14216157]
[1749665371185,23.91513963,163.9,163.79,23.91513963]
[1749665371386,23.91513963,163.86,163.78,26.0]
[1749665371586,41.10933982,163.91,163.81,23.91513963]
[1749665371787,26.0,163.88,163.82,25.4403947]
[1749665371980,26.0,163.88,163.78,26.0]
[1749665371981,26.0,163.88,163.81,23.91513963]
[1749665372186,49.91513963,163.88,163.82,23.91513963]
[1749665372483,23.91513963,163.87,163.79,18.933972]
[1749665372787,0.5883458,163.91,163.84,23.91513963]
[1749665372988,0.5883458,163.91,163.87,23.91513963]
[1749665373195,0.5883458,163.91,163.88,23.91513963]
[1749665373390,0.5883458,163.91,163.88,34.05169439]
[1749665373642,34.64004019,163.91,163.82,26.0]
[1749665373769,0.14216157,163.9,163.86,34.05169439]
[1749665373967,34.05169439,163.9,163.82,26.0]
[1749665374170,0.87266894,163.91,163.79,34.05169439]
[1749665374171,0.87266894,163.91,163.8,26.0]
[1749665374382,34.05169439,163.87,163.78,26.28432314]
[1749665374585,0.14216157,163.9,163.83,34.05169439]
[1749665374785,0.14216157,163.88,163.83,34.05169439]
[1749665375000,0.14216157,163.9,163.84,34.05169439]
[1749665375199,0.14216157,163.88,163.85,34.05169439]
[1749665375499,0.14216157,163.88,163.79,52.70134325]
[1749665375686,0.14216157,163.88,163.85,34.05169439]
[1749665376405,0.14216157,163.88,163.79,52.70134325]
[1749665376577,0.14216157,163.88,163.79,18.64964886]
[1749665376780,0.14216157,163.88,163.84,34.05169439]
[1749665377084,0.14216157,163.88,163.85,34.05169439]
[1749665377703,34.19385596,163.89,163.85,34.05169439]
[1749665378083,6.2438197,163.89,163.85,34.05169439]
[1749665379216,0.14216157,163.89,163.85,34.05169439]
[1749665379587,0.14216157,163.9,163.87,34.05169439]
[1749665379791,0.14216157,163.9,163.82,26.0]
[1749665380011,0.5883458,163.91,163.88,34.05169439]
[1749665381020,0.5883458,163.91,163.87,34.05169439]
[1749665381209,0.5883458,163.91,163.83,18.64964886]
[1749665381522,0.5883458,163.91,163.88,34.05169439]
[1749665381727,0.5883458,163.91,163.83,18.64964886]
[1749665381906,0.5883458,163.91,163.88,34.05169439]
[1749665382695,0.5883458,163.91,163.83,20.24054886]
[1749665382914,0.5883458,163.91,163.88,34.05169439]
[1749665383487,0.5883458,163.91,163.83,20.24054886]
[1749665383817,0.5883458,163.91,163.87,34.05169439]
[1749665384018,0.5883458,163.91,163.83,20.24054886]
[1749665384019,0.5883458,163.91,163.88,34.05169439]
[1749665384190,0.5883458,163.91,163.83,20.24054886]
[1749665384390,0.5883458,163.91,163.88,34.05169439]
[1749665384616,0.5883458,163.91,163.89,34.05169439]
[1749665385417,0.5883458,163.91,163.9,34.05169439]
[1749665385600,0.5883458,163.91,163.89,34.05169439]
[1749665386120,0.5883458,163.91,163.9,34.05169439]
[1749665387017,0.5883458,163.91,163.89,34.05169439]
[1749665388895,0.5883458,163.91,163.88,34.05169439]
[1749665389509,0.5883458,163.91,163.9,34.05169439]
[1749665390401,0.5883458,163.91,163.86,44.64964886]
[1749665390919,0.5883458,163.91,163.89,34.05169439]
[1749665391603,0.5883458,163.91,163.9,34.05169439]
[1749665392201,0.5883458,163.91,163.86,44.64964886]
[1749665392397,0.5883458,163.91,163.9,34.05169439]
[1749665392723,0.5883458,163.91,163.86,44.64964886]
[1749665392926,0.5883458,163.91,163.9,34.05169439]
[1749665393226,0.5883458,163.91,163.86,26.0]
[1749665393928,0.5883458,163.91,163.9,23.80436217]
[1749665394425,0.5883458,163.91,163.86,26.0]
[1749665394604,0.5883458,163.91,163.89,23.80436217]
[1749665394925,0.5883458,163.91,163.9,23.80436217]
[1749665395112,0.5883458,163.91,163.89,23.80436217]
[1749665395621,0.5883458,163.91,163.84,0.28432314]
[1749665395828,24.4,163.9,163.79,8.1471]
[1749665396015,23.80436217,163.85,163.79,1.6386]
[1749665396326,0.42648471,163.89,163.82,23.80436217]
[1749665396526,23.80436217,163.86,163.82,23.80436217]
[1749665396733,23.80436217,163.86,163.8,26.0]
[1749665396909,23.80436217,163.83,163.75,8.0626]
[1749665397104,0.14216157,163.85,163.79,23.80436217]
[1749665397310,23.80436217,163.83,163.79,23.80436217]
[1749665397808,23.80436217,163.84,163.79,23.80436217]
[1749665398000,23.80436217,163.84,163.8,23.80436217]
[1749665398700,6.10315613,163.85,163.8,23.80436217]
[1749665398896,0.14216157,163.85,163.8,23.80436217]
[1749665399117,23.80436217,163.84,163.8,23.80436217]
[1749665400334,23.80436217,163.84,163.78,26.0]
[1749665400335,23.80436217,163.84,163.79,23.80436217]
[1749665400635,6.24536981,163.85,163.79,23.80436217]
[1749665400636,23.80436217,163.83,163.79,23.80436217]
[1749665400823,23.80436217,163.8,163.73,18.64964886]
[1749665401008,23.80436217,163.78,163.73,23.80436217]
[1749665401205,0.14216157,163.81,163.74,23.80436217]
[1749665401409,23.80436217,163.78,163.74,23.80436217]
[1749665401619,23.80436217,163.76,163.72,34.67503799]
[1749665401912,23.80436217,163.73,163.68,23.80436217]
[1749665402111,0.14216157,163.75,163.67,1.5184]
[1749665402351,23.80436217,163.74,163.69,23.80436217]
[1749665402636,23.80436217,163.73,163.69,23.80436217]
[1749665403137,23.80436217,163.74,163.69,23.80436217]
[1749665403308,23.80436217,163.73,163.69,23.80436217]
[1749665403512,0.14216157,163.75,163.69,23.80436217]
[1749665403837,31.32436217,163.76,163.71,23.80436217]
[1749665404139,23.80436217,163.73,163.68,18.64964886]
[1749665404331,0.14216157,163.73,163.63,8.2822]
[1749665404540,0.14216157,163.73,163.64,18.64964886]
[1749665404541,23.80436217,163.67,163.64,18.64964886]
[1749665404842,23.80436217,163.67,163.63,42.45401103]
[1749665405011,23.80436217,163.68,163.63,42.45401103]
[1749665405212,23.80436217,163.68,163.61,26.0]
[1749665405213,23.80436217,163.69,163.64,23.80436217]
[1749665405416,23.80436217,163.68,163.64,23.80436217]
[1749665405618,23.80436217,163.67,163.63,23.80436217]
[1749665405837,23.80436217,163.67,163.62,42.45401103]
[1749665406043,23.80436217,163.66,163.6,18.64964886]
[1749665406213,23.80436217,163.66,163.59,1.5445]
[1749665406214,23.80436217,163.63,163.59,1.5445]
[1749665406419,23.80436217,163.63,163.58,23.80436217]
[1749665406826,23.80436217,163.63,163.59,23.80436217]
[1749665407028,23.80436217,163.63,163.58,18.64964886]
[1749665407217,23.80436217,163.6,163.55,18.64964886]
[1749665407435,23.80436217,163.58,163.5,12.31975538]
[1749665407628,0.14216157,163.61,163.5,8.1787]
[1749665407927,0.14216157,163.61,163.52,23.80436217]
[1749665407928,23.80436217,163.56,163.52,23.80436217]
[1749665408126,23.80436217,163.56,163.51,18.64964886]
[1749665408329,0.14216157,163.59,163.52,23.80436217]
[1749665408527,23.80436217,163.6,163.54,18.64964886]
[1749665408750,0.14216157,163.61,163.56,23.80436217]
[1749665408921,0.14216157,163.61,163.54,18.64964886]
[1749665408922,23.80436217,163.6,163.55,23.80436217]
[1749665409449,23.80436217,163.59,163.54,18.64964886]
[1749665409654,23.80436217,163.6,163.55,23.80436217]
[1749665409823,23.80436217,163.6,163.56,23.80436217]
[1749665410024,23.80436217,163.61,163.56,23.80436217]
[1749665410250,50.4,163.62,163.54,18.64964886]
[1749665410442,23.80436217,163.59,163.54,42.45401103]
[1749665410957,0.42648471,163.61,163.51,18.64964886]
[1749665411124,0.42648471,163.61,163.52,23.80436217]
[1749665411446,23.80436217,163.57,163.51,18.64964886]
[1749665411648,0.42648471,163.61,163.45,7.8127]
[1749665411649,23.80436217,163.53,163.45,7.8127]
[1749665411847,23.80436217,163.53,163.49,18.64964886]
[1749665412020,23.80436217,163.53,163.46,18.64964886]
[1749665412021,23.80436217,163.53,163.46,44.64964886]
[1749665412219,23.80436217,163.52,163.46,18.64964886]
[1749665412425,24.42,163.54,163.48,23.80436217]
[1749665413051,24.42,163.54,163.47,23.80436217]
[1749665413052,23.80436217,163.52,163.47,23.80436217]
[1749665413229,23.80436217,163.5,163.46,23.80436217]
[1749665413428,23.80436217,163.51,163.46,23.80436217]
[1749665413628,24.42,163.54,163.45,20.23184886]
[1749665413842,23.80436217,163.53,163.49,23.80436217]
[1749665414029,24.42,163.54,163.49,23.80436217]
[1749665414230,23.80436217,163.53,163.49,23.80436217]
[1749665414552,24.42,163.54,163.49,23.80436217]
[1749665414749,23.80436217,163.53,163.49,23.80436217]
[1749665415047,23.80436217,163.53,163.48,23.80436217]
[1749665415344,23.80436217,163.52,163.48,23.80436217]
[1749665415543,23.80436217,163.51,163.47,23.80436217]
[1749665415723,23.80436217,163.52,163.48,23.80436217]
[1749665415919,24.42,163.54,163.48,23.80436217]
[1749665416152,23.80436217,163.53,163.48,23.80436217]
[1749665416326,23.80436217,163.53,163.49,23.80436217]
[1749665416525,23.80436217,163.53,163.48,23.80436217]
[1749665416725,24.42,163.54,163.46,18.64964886]
[1749665416726,23.80436217,163.52,163.46,18.64964886]
[1749665416950,23.80436217,163.52,163.48,23.80436217]
[1749665417349,24.42,163.54,163.48,23.80436217]
[1749665417739,24.42,163.54,163.5,23.80436217]
[1749665418043,23.80436217,163.54,163.5,23.80436217]
[1749665418245,23.80436217,163.54,163.46,18.64964886]
[1749665418246,23.80436217,163.52,163.46,18.64964886]
[1749665418744,23.80436217,163.52,163.47,23.80436217]
[1749665418951,23.80436217,163.52,163.46,18.64964886]
[1749665419127,23.80436217,163.51,163.47,23.80436217]
[1749665419524,23.80436217,163.53,163.49,23.80436217]
[1749665419732,0.14216157,163.55,163.5,23.80436217]
[1749665420065,23.80436217,163.54,163.5,23.80436217]
[1749665420456,23.80436217,163.53,163.49,23.80436217]
[1749665420952,0.14216157,163.55,163.48,23.80436217]
[1749665421168,23.80436217,163.53,163.49,23.80436217]
[1749665421841,24.58216157,163.55,163.46,18.64964886]
[1749665422042,23.80436217,163.53,163.48,23.80436217]
[1749665422255,24.58216157,163.55,163.48,23.80436217]
[1749665422488,24.58216157,163.55,163.47,23.80436217]
[1749665422489,23.80436217,163.52,163.47,23.80436217]
[1749665422859,23.80436217,163.5,163.45,51.38656217]
[1749665423771,0.14216157,163.53,163.47,23.80436217]
[1749665423972,23.80436217,163.51,163.47,23.80436217]
[1749665424554,30.69732153,163.53,163.46,23.80436217]
[1749665424754,23.80436217,163.5,163.45,51.38656217]
[1749665425067,23.80436217,163.49,163.45,26.0]
[1749665425277,23.80436217,163.49,163.44,42.45401103]
[1749665425455,23.80436217,163.49,163.44,26.0]
[1749665425656,23.80436217,163.48,163.43,42.45401103]
[1749665425857,23.80436217,163.48,163.44,23.80436217]
[1749665426356,23.80436217,163.46,163.41,18.64964886]
[1749665426682,23.80436217,163.46,163.41,42.45401103]
[1749665426983,23.80436217,163.42,163.36,25.34156217]
[1749665427152,6.5554,163.46,163.36,25.34156217]
[1749665427153,23.80436217,163.41,163.36,51.34156217]
[1749665427355,23.80436217,163.42,163.38,23.80436217]
[1749665427556,23.80436217,163.42,163.36,46.18684886]
[1749665427557,23.80436217,163.42,163.36,27.5372]
[1749665427753,23.80436217,163.42,163.37,42.45401103]
[1749665428372,48.24436217,163.43,163.37,18.64964886]
[1749665428550,24.44,163.43,163.39,23.80436217]
[1749665428756,0.28432314,163.49,163.42,23.80436217]
[1749665428974,23.80436217,163.47,163.43,23.80436217]
[1749665429177,24.44,163.48,163.36,27.82152314]
[1749665429178,24.44,163.48,163.38,0.28432314]
[1749665429477,23.80436217,163.47,163.42,23.80436217]
[1749665429677,23.80436217,163.46,163.42,23.80436217]
[1749665429879,23.80436217,163.47,163.42,23.80436217]
[1749665430098,23.80436217,163.47,163.38,18.933972]
[1749665430099,23.80436217,163.47,163.43,23.80436217]
[1749665430274,24.44,163.48,163.38,18.933972]
[1749665430275,23.80436217,163.48,163.44,23.80436217]
[1749665430463,23.80436217,163.5,163.45,23.80436217]
[1749665430663,48.26436217,163.5,163.45,23.80436217]
[1749665430867,23.80436217,163.5,163.45,23.80436217]
[1749665431062,23.80436217,163.53,163.48,23.80436217]
[1749665431270,48.26436217,163.52,163.47,23.80436217]
[1749665431566,23.80436217,163.51,163.46,23.80436217]
[1749665432470,24.46,163.52,163.47,23.80436217]
[1749665432665,23.80436217,163.51,163.47,23.80436217]
[1749665433267,24.46,163.52,163.47,23.80436217]
[1749665433564,48.26436217,163.52,163.48,23.80436217]
[1749665433772,48.26436217,163.52,163.47,23.80436217]
[1749665433972,24.46,163.52,163.47,23.80436217]
[1749665434166,23.80436217,163.52,163.47,23.80436217]
[1749665434389,48.26436217,163.52,163.47,23.80436217]
[1749665434590,48.26436217,163.52,163.44,20.19054886]
[1749665434782,23.80436217,163.51,163.44,20.19054886]
[1749665435071,23.80436217,163.5,163.44,20.19054886]
[1749665435278,0.14216157,163.51,163.44,20.19054886]
[1749665435481,23.80436217,163.48,163.44,23.80436217]
[1749665435679,23.80436217,163.49,163.45,23.80436217]
[1749665435888,23.94652374,163.51,163.46,23.80436217]
[1749665436058,23.80436217,163.5,163.46,23.80436217]
[1749665436386,0.14216157,163.51,163.46,23.80436217]
[1749665436387,23.94652374,163.51,163.46,23.80436217]
[1749665436591,23.80436217,163.51,163.46,23.80436217]
[1749665436774,24.46,163.51,163.47,23.80436217]
[1749665437168,24.46,163.51,163.48,23.80436217]
[1749665437573,31.32436217,163.54,163.49,23.80436217]
[1749665437768,0.14216157,163.53,163.49,23.80436217]
[1749665437970,7.52,163.54,163.51,23.80436217]
[1749665438503,7.52,163.54,163.52,23.80436217]
[1749665438674,7.52,163.54,163.53,23.80436217]
[1749665438876,48.26436217,163.59,163.53,23.80436217]
[1749665439182,23.80436217,163.61,163.56,23.80436217]
[1749665439381,24.46,163.6,163.56,23.80436217]
[1749665439793,24.46,163.61,163.57,23.80436217]
[1749665440099,48.26436217,163.61,163.57,23.80436217]
[1749665440499,24.46,163.61,163.57,23.80436217]
[1749665440896,23.80436217,163.6,163.56,23.80436217]
[1749665441388,23.80436217,163.6,163.5,18.64964886]
[1749665441389,23.80436217,163.57,163.5,18.64964886]
[1749665441603,23.80436217,163.57,163.52,49.80436217]
[1749665441604,48.26436217,163.57,163.52,49.80436217]
[1749665441904,24.46,163.57,163.55,23.80436217]
[1749665442499,24.46,163.59,163.55,23.80436217]
[1749665442798,23.80436217,163.58,163.53,42.45401103]
[1749665442998,30.57294086,163.59,163.53,23.80436217]
[1749665443203,23.80436217,163.57,163.53,23.80436217]
[1749665444093,23.80436217,163.57,163.52,23.80436217]
[1749665444300,23.80436217,163.57,163.53,23.80436217]
[1749665445395,23.80436217,163.58,163.53,23.80436217]
[1749665445606,23.80436217,163.57,163.51,18.64964886]
[1749665445786,23.80436217,163.56,163.51,23.80436217]
[1749665445986,30.5728944,163.59,163.51,23.80436217]
[1749665446187,0.42648471,163.58,163.51,23.80436217]
[1749665446504,23.80436217,163.53,163.48,29.46351755]
[1749665446695,24.44,163.53,163.49,18.64964886]
[1749665446899,24.44,163.53,163.5,23.80436217]
[1749665447405,24.44,163.53,163.48,23.80436217]
[1749665447581,48.24436217,163.53,163.49,23.80436217]
[1749665448294,48.24436217,163.53,163.46,18.64964886]
[1749665448501,48.24436217,163.53,163.49,23.80436217]
[1749665448899,48.24436217,163.53,163.46,24.30880424]
[1749665449089,48.24436217,163.53,163.49,23.80436217]
[1749665449409,48.24436217,163.53,163.48,23.80436217]
[1749665449779,24.44,163.53,163.5,23.80436217]
[1749665449976,24.44,163.54,163.48,44.64964886]
[1749665450181,24.44,163.54,163.51,23.80436217]
[1749665450690,24.44,163.54,163.48,50.30880424]
[1749665450691,7.5,163.56,163.53,23.80436217]
[1749665450894,7.5,163.56,163.54,23.80436217]
[1749665451288,7.5,163.56,163.55,23.80436217]
[1749665452010,47.51731122,163.64,163.55,42.45401103]
[1749665452209,47.51731122,163.64,163.58,23.80436217]
[1749665452210,24.46,163.63,163.58,23.80436217]
[1749665452388,48.26436217,163.62,163.55,24.30880424]
[1749665452589,48.26436217,163.62,163.57,23.80436217]
[1749665452896,23.80436217,163.61,163.55,18.64964886]
[1749665453203,23.80436217,163.59,163.55,23.80436217]
[1749665453412,24.46,163.59,163.55,23.80436217]
[1749665453611,24.46,163.59,163.54,5.65915538]
[1749665453786,48.24436217,163.59,163.55,23.80436217]
[1749665454392,24.44,163.59,163.55,23.80436217]
[1749665454909,23.80436217,163.56,163.51,5.65915538]
[1749665455214,23.80436217,163.54,163.5,23.80436217]
[1749665455513,48.24436217,163.55,163.5,23.80436217]
[1749665456111,24.44,163.55,163.51,23.80436217]
[1749665456317,26.0,163.63,163.54,23.80436217]
[1749665456616,48.24436217,163.63,163.55,18.64964886]
[1749665456827,23.80436217,163.61,163.56,23.80436217]
[1749665457121,23.80436217,163.61,163.54,31.65915538]
[1749665457289,48.24436217,163.6,163.56,23.80436217]
[1749665457487,24.44,163.6,163.54,26.0]
[1749665457708,24.44,163.6,163.55,23.80436217]
[1749665458017,23.80436217,163.58,163.54,23.80436217]
[1749665458611,24.44,163.57,163.52,26.0]
[1749665458813,48.24436217,163.57,163.52,23.80436217]
[1749665458997,23.80436217,163.56,163.51,18.64964886]
[1749665459320,23.80436217,163.56,163.51,42.45401103]
[1749665459610,24.44,163.57,163.52,23.80436217]
[1749665460010,24.44,163.57,163.53,23.80436217]
[1749665460587,23.80436217,163.56,163.49,7.7905]
[1749665460810,23.80436217,163.56,163.52,23.80436217]
[1749665461211,24.44,163.57,163.52,23.80436217]
[1749665461212,48.24436217,163.57,163.52,23.80436217]
[1749665461515,48.24436217,163.57,163.5,18.64964886]
[1749665461723,23.80436217,163.56,163.52,23.80436217]
[1749665463217,24.44,163.57,163.52,23.80436217]
[1749665463615,48.24436217,163.57,163.52,23.80436217]
[1749665463914,24.44,163.57,163.52,23.80436217]
[1749665464120,23.80436217,163.56,163.5,18.64964886]
[1749665464323,23.80436217,163.56,163.52,23.80436217]
[1749665464694,23.80436217,163.56,163.5,18.64964886]
[1749665464895,23.80436217,163.54,163.5,23.80436217]
[1749665465113,23.80436217,163.55,163.5,23.80436217]
[1749665465304,0.14216157,163.58,163.53,23.80436217]
[1749665465507,7.48,163.6,163.57,23.80436217]
[1749665465818,7.48,163.6,163.59,23.80436217]
[1749665466012,7.48,163.68,163.59,23.80436217]
[1749665466316,31.28436217,163.68,163.63,23.80436217]
[1749665466892,7.48,163.68,163.64,23.80436217]
[1749665467101,24.44,163.67,163.64,23.80436217]
[1749665467518,31.28436217,163.68,163.64,23.80436217]
[1749665467827,24.44,163.67,163.61,23.80436217]
[1749665468116,23.80436217,163.65,163.61,23.80436217]
[1749665468696,24.44,163.67,163.61,23.80436217]
[1749665469018,24.44,163.67,163.64,23.80436217]
[1749665469201,48.24436217,163.67,163.63,23.80436217]
[1749665469407,23.80436217,163.66,163.6,18.64964886]
[1749665469612,23.80436217,163.66,163.61,23.80436217]
[1749665469926,48.24436217,163.67,163.62,23.80436217]
[1749665470431,24.44,163.66,163.63,23.80436217]
[1749665470723,24.58216157,163.67,163.63,23.80436217]
[1749665470927,23.80436217,163.66,163.6,18.64964886]
[1749665471245,24.44,163.67,163.64,23.80436217]
[1749665471617,24.44,163.67,163.6,18.64964886]
[1749665472005,24.44,163.67,163.64,23.80436217]
[1749665472533,24.44,163.67,163.6,18.64964886]
[1749665472720,23.80436217,163.66,163.61,23.80436217]
[1749665472920,23.80436217,163.66,163.59,26.0]
[1749665473125,23.80436217,163.62,163.58,23.80436217]
[1749665473424,23.80436217,163.62,163.57,1.6368]